Cogmind - Beta 12 @@@ ROGUE MODE // 2023.03.03 @ 19:57:35 Player: rekpake Result: Destroyed by as-96965 with Assembled Blade Performance ------------- Evolutions (0) 0 Regions Visited (2) 400 Robots Destroyed (5) 25 Value Destroyed (178) 178 Prototype IDs (0) 0 Alien Tech Used (0) 0 Bonus (0) 0 TOTAL SCORE: 603 Bonus ------- None Cogmind --------- Core Integrity 0/250 Matter 300/300 Energy 100/100 System Corruption 0% Temperature Cool (0) Movement Core (350) Ox6 Location -10/Mines Parts ------- > --- POWER (1) -------- (None) > --- PROPULSION (2) --- (None) > --- UTILITY (2) ------ Large Storage Unit > --- WEAPON (2) ------- (None) > --- INVENTORY (15) --- Light Ion Engine Small Storage Unit Medium Storage Unit Large Storage Unit Sensor Array Small Laser Light Assault Rifle Peak State ------------ > --- POWER ------------ Ion Engine > --- PROPULSION ------- Compact Wheel Compact Wheel > --- UTILITY ---------- Small Storage Unit Large Storage Unit > --- WEAPON ----------- Medium Laser Medium Laser > --- INVENTORY -------- Light Ion Engine Medium Storage Unit Small Laser Light Assault Rifle [Rating: 7] Favorites ----------- Power Ion Engine Engine Ion Engine Propulsion Compact Wheel Wheel Compact Wheel Utility Small Storage Unit Device Heat Sink Storage Small Storage Unit Weapon Medium Laser Energy Gun Medium Laser Ballistic Gun Light Assault Rifle Build | -11 -10 -10 ------- Run | Jun Mat Min Slots Evolved . | . . . Power . | . . . Propulsion . | . . . Utility . | . . . Weapon . | . . . Parts Attached 14 | 7 7 . Power 3 | 2 1 . Engine 3 | 2 1 . Core . | . . . Reactor . | . . . Propulsion 2 | 2 . . Treads . | . . . Leg . | . . . Wheel 2 | 2 . . Hover . | . . . Flight . | . . . Utility 4 | 1 3 . Device 1 | . 1 . Storage 3 | 1 2 . Processor . | . . . Hackware . | . . . Protection . | . . . Artifact . | . . . Weapon 5 | 2 3 . Energy Gun 4 | 1 3 . Energy Cannon . | . . . Ballistic Gun 1 | 1 . . Ballistic Cannon . | . . . Launcher . | . . . Special Weapon . | . . . Impact Weapon . | . . . Slashing Weapon . | . . . Piercing Weapon . | . . . Special Melee Weapon . | . . . Unidentified Prototypes . | . . . Parts Lost 6 | . . 6 Power 1 | . . 1 Propulsion 2 | . . 2 Utility 1 | . . 1 Weapon 2 | . . 2 Highest Loss Streak 4 | . . 4 To Critical Strikes . | . . . Average Slot Usage (%) 90 | . 92 85 Engine 13 | . 13 14 Wheel 26 | . 28 22 Device 1 | . . 8 Storage 19 | . 21 14 Energy Gun 25 | . 25 25 Ballistic Gun 1 | . 2 . Naked Turns . | . . . Heaviest Build 34 | 12 34 30 Greatest Support 32 | 32 32 32 Greatest Overweight (x) 8 | . 1 8 Average Overweight (x) . | . . . Largest Inventory Capacity 15 | 8 15 15 Average Capacity 12 | 6 11 15 Most Carried 8 | 5 8 7 Average Carried 5 | 2 4 7 Final Capacity 15 | 8 15 15 Final Carried 7 | 2 7 7 Class Distribution -------------------- 100% | Mutant Dominant Class ---------------- Mutant | -10/Materials Mutant | -10/Mines Resources | -11 -10 -10 ----------- Run | Jun Mat Min Matter Collected 342 | 191 99 52 Remotely . | . . . Salvage Created 229 | . 109 120 Parts 9 | . 7 2 Haulers Intercepted . | . . . Recyclers Shooed . | . . . Parts Field Recycled . | . . . Retrieved Matter . | . . . Parts Self-Destructed . | . . . Prevented . | . . . Kills | -11 -10 -10 ------- Run | Jun Mat Min Combat Hostiles Destroyed 6 | . 2 4 Guns 6 | . 2 4 Classes Destroyed 3 | . 2 1 Watcher 1 | . 1 . Grunt 4 | . 2 2 Assembled 2 | . . 2 Best Kill Streak 2 | . 1 2 Combat Bots Only 2 | . 1 2 Max Kills in Single Turn 1 | . 1 1 Gunslinging . | . . . Exploded . | . . . Melee . | . . . Uniques/NPCs Destroyed . | . . . Combat | -11 -10 -10 -------- Run | Jun Mat Min Damage Taken 597 | . 90 507 Core 264 | . 17 247 Absorbed by Shields . | . . . Core Remaining (%) 100 | 100 . . Volleys Fired 28 | . 11 17 Largest 2 | . 2 2 Hottest 100 | . 100 100 Shots Fired 56 | . 22 34 Gun 56 | . 22 34 Cannon . | . . . Launcher . | . . . Special . | . . . Kinetic 2 | . 2 . Thermal 54 | . 20 34 Explosive . | . . . Electromagnetic . | . . . Robot Hit Streak 10 | . 3 10 Robot Miss Streak 4 | . 4 4 Penetration Max . | . . . Secondary Targets . | . . . Shots Hit Robots 31 | . 11 20 Core Hits 16 | . 7 9 Critical Kills . | . . . Critical Parts Destroyed . | . . . Critical Strikes 1 | . . 1 Burn 1 | . . 1 Melee Attacks . | . . . Impact . | . . . Slashing . | . . . Piercing . | . . . Sneak Attacks . | . . . Combat Hostiles . | . . . Follow-up Attacks . | . . . Damage Inflicted 380 | . 133 247 Guns 380 | . 133 247 Cannons . | . . . Explosions . | . . . Melee . | . . . Ramming . | . . . Kinetic . | . . . Thermal 380 | . 133 247 Explosive . | . . . Electromagnetic . | . . . Impact . | . . . Slashing . | . . . Piercing . | . . . Highest Corruption . | . . . Average Corruption . | . . . Corruption Purged . | . . . Corruption Blocked . | . . . Overload Shots . | . . . Overflow Damage . | . . . Projectiles . | . . . Explosions . | . . . Melee . | . . . Knockbacks . | . . . Impact . | . . . Kinetic . | . . . Secondary . | . . . Self-Inflicted Damage . | . . . Shots . | . . . Rammed . | . . . Targets Rammed . | . . . Kicked . | . . . Crushed . | . . . Highest Temperature 249 | . 249 156 Average Temperature 76 | . 87 68 Received Heat Transfer 195 | . 66 129 Siege Activations . | . . . Robots Corrupted . | . . . Combat Hostiles . | . . . Parts Fried . | . . . Impact Corruptions . | . . . Robots Melted . | . . . Combat Hostiles . | . . . Parts Melted 5 | . 1 4 Heat Transferred 1197 | . 383 814 Parts Sabotaged . | . . . Parts Stolen . | . . . Parts Stripped . | . . . Power Chain Reactions . | . . . Missiles Intercepted . | . . . Alert | -11 -10 -10 ------- Run | Jun Mat Min Peak Influence 162 | . 162 113 Initial 63 | . . 63 Average 46 | . 35 93 Maximum Alert Level . | . . . Low Security (%) 100 | 100 100 100 Level 1 . | . . . Level 2 . | . . . Level 3 . | . . . Level 4 . | . . . Level 5 . | . . . High Security . | . . . Max Security . | . . . Squads Dispatched 2 | . 2 . Investigation . | . . . Extermination . | . . . Reinforcement 2 | . 2 . Assault . | . . . Garrison . | . . . Intercept . | . . . Searches Triggered . | . . . Construction Impeded . | . . . Haulers Reinforced . | . . . Active Scanning Responses . | . . . Cargo Convoy Interrupts . | . . . Stealth | -11 -10 -10 --------- Run | Jun Mat Min Distress Signals 2 | . . 2 Communications Jammed . | . . . Distress Signals . | . . . Times Spotted 18 | . 11 7 Peak Tracking Total 5 | . 5 3 Tactical Retreats 2 | . 2 . Traps | -11 -10 -10 ------- Run | Jun Mat Min Traps Triggered 1 | . 1 . Indirectly . | . . . Trap Hack Attempts . | . . . Triggered . | . . . Disarmed . | . . . Reprogrammed . | . . . Reused . | . . . Traps Extracted . | . . . Installed . | . . . Triggered . | . . . Machines | -11 -10 -10 ---------- Run | Jun Mat Min Machines Disabled . | . . . Max in Single Turn . | . . . Machines Repaired . | . . . Machines Sabotaged . | . . . Overloaded Fab Kills . | . . . Hacking | -11 -10 -10 --------- Run | Jun Mat Min Machines Accessed 5 | . 5 . Terminals 5 | . 5 . Fabricators . | . . . Repair Stations . | . . . Recycling Units . | . . . Scanalyzers . | . . . Garrison Access . | . . . Total Hacks 10 | . 10 . Successful 3 | . 3 . Failed 7 | . 7 . Catastrophic . | . . . Database Lockouts . | . . . Manual 3 | . 3 . Terminals 10 | . 10 . Fabricators . | . . . Repair Stations . | . . . Recycling Units . | . . . Scanalyzers . | . . . Garrison Access . | . . . Terminal Hacks 3 | . 3 . Robot Analysis 1 | . 1 . Unreport Threat 1 | . 1 . Zone Layout 1 | . 1 . Fabricator Hacks . | . . . Repair Station Hacks . | . . . Recycling Unit Hacks . | . . . Scanalyzer . | . . . Garrison Access Hacks . | . . . Unauthorized Hacks . | . . . Terminals . | . . . Fabricators . | . . . Repair Stations . | . . . Recycling Units . | . . . Scanalyzers . | . . . Garrison Access . | . . . Data Cores Recovered . | . . . Used . | . . . Hacking Detections 4 | . 4 . Full Trace Events . | . . . Feedback Events . | . . . Feedback Blocked . | . . . Robot Schematics Acquired . | . . . Robots Built . | . . . Authchips . | . . . Time . | . . . Total Robot Build Rating . | . . . Part Schematics Acquired . | . . . Parts Built . | . . . Authchips . | . . . Time . | . . . Total Part Build Rating . | . . . Parts Repaired . | . . . Time . | . . . Parts Recycled . | . . . Recycled Matter . | . . . Retrieved Matter . | . . . Retrieved Components . | . . . Parts Scanalyzed . | . . . Part Schematics Acquired . | . . . Parts Damaged . | . . . Bothacking | -11 -10 -10 ------------ Run | Jun Mat Min Used RIF Installer . | . . . Robots Hacked . | . . . Non-combat . | . . . Combat . | . . . Robot Hacks Applied . | . . . Relay Couplers Released . | . . . Fabnet Peak Effective % . | . . . Robots Rewired . | . . . Allies Hacked . | . . . Hacks Repelled . | . . . Allies | -11 -10 -10 -------- Run | Jun Mat Min Total Allies . | . . . Largest Group . | . . . Highest-Rated Group . | . . . Highest-Rated Ally . | . . . Total Orders . | . . . Ally Attacks . | . . . Total Damage . | . . . Kills . | . . . Allies Corrupted . | . . . Allies Melted . | . . . Intel | -11 -10 -10 ------- Run | Jun Mat Min Robot Analysis Total 1 | . 1 . Derelict Logs Recovered 1 | . . 1 Drone Launches . | . . . Drone Recoveries . | . . . Exploration | -11 -10 -10 ------------- Run | Jun Mat Min Turns Passed 568 | 46 394 128 Spaces Moved 420 | 39 314 67 Core 16 | 14 . 2 Treads . | . . . Legs . | . . . Wheels 404 | 25 314 65 Hover . | . . . Flight . | . . . Fastest Speed 50 | 50 100 100 Average Speed 106 | 82 106 116 Slowest Speed 450 | 100 115 450 Overloaded Moves . | . . . Propulsion Burnouts . | . . . Robots Hopped . | . . . Cave-ins Triggered . | . . . Exploration Rate (%) 27 | 4 53 24 Regions Visited 2 Branch Regions 1 Pre-discovered Areas . | . . . Known Exits Taken . | . . . Unknown Exits Taken 2 | 1 1 . Scrap Searched . | . . . Spaces Dug . | . . . Terrain Destroyed . | . . . Melee . | . . . Projectile . | . . . AOE . | . . . Terrain Rammed . | . . . Walls Destroyed . | . . . Machines Disabled . | . . . Actions | -11 -10 -10 --------- Run | Jun Mat Min Total 486 | 52 350 84 Wait 10 | . 10 . Move 418 | 38 313 67 Hop . | . . . Pick Up 12 | 7 5 . Fast Attach 4 | 1 3 . Attach 9 | 5 4 . Detach 4 | . 4 . Swap 1 | 1 . . Drop . | . . . Fire 28 | . 11 17 Melee . | . . . Ram . | . . . Kick . | . . . Crush . | . . . Escape Stasis . | . . . Rewire . | . . . Trap . | . . . Miscellaneous . | . . . Route ------- -11/Junkyard -10/Materials (discovered 2 exits: [*Mat] / [*Min]) -10/Mines History --------- Turn | Location | Event 10 | -11/Junkyard | Discovered new exit (range 15) 47 | -11/Junkyard | Entered Materials 187 | -10/Materials | Discovered new exit (range 16) 285 | -10/Materials | Discovered new exit (range 15) 313 | -10/Materials | Build established: Mutant 441 | -10/Materials | Entered Mines 442 | -10/Mines | Assembled infested the area 526 | -10/Mines | Core integrity fell below 50% 535 | -10/Mines | Learned Materials terminal intel 567 | -10/Mines | Core integrity fell below 20% 569 | -10/Mines | Destroyed by as-96965 with Assembled Blade Last Messages --------------- 00451_ Critical hit (Burn: +37). 00453_ Laser Drill disabled. 00453_ Heat Sink melted. 00453_ Sml. Laser melted. 00453_ G-34 Mercenary destroyed. 00459_ G-47 Trooper suffers critical hit (Burn). 00462_ Lgt. Nuclear Core melted. 00462_ Particle Gun melted. 00462_ G-47 Trooper destroyed. 00466_ Acquired 49 matter. 00470_ Acquired 3 matter. 00484_ as-74090 destroyed. 00510_ Com. Wheel destroyed. 00510_ Heat Sink destroyed. 00526_ as-66120 destroyed. 00535_ Acquired derelict log, extracted data. Data stored: Materials terminal intel. 00551_ Med. Laser destroyed. 00562_ Com. Wheel destroyed. 00565_ Ion Engine destroyed. Map ----- +----------------------------------------------------+ | ?????????????????????????????????????????????????? | | ?????????????????????????????????????????????????? | | ?????????????????????????????????????????????????? | | ?????????????????????????????????????????????????? | | ?????????????????????????????????????????????????? | | ?????????????????????????????????????????????????? | | ?????????????????????? ##???????????????????????? | | ???????????????????? #??????????????????????? | | ??????????????????? ??????????????????????? | | ?????????????????? ###???????????????????? | | ????????????????? #???????????????????? | | ????????????????? ???????????????????? | | ????????????????? !% #?????????????#?????? | | ???????????????? % #???????????? ##????? | | ????????????????? a ##?????????? #????? | | ????????????????* ###??????? #????? | | ???????????????? ##????? #????? | | ????????????????? #????# #?????? | | ????????????????????????# ##### #?????? | | ????????????????????????## ## ##????? | | ????????????????????????## ### #????? | | ????????????????????????# a ##?# #????? | | ????????????????????????# ##??# ##### #???? | | ????????????????????????# #???# #?????? #??? | | ????????????????????????#a ##??# #???????? #??? | | ????????????????????????#@ #??# #?????????????? | | ???????????????????????# #??# #?????????????? | | ??????????????????????# #??# #?????????????? | | ??????????????????????# ##??# #?????????????? | | ??????????????????????# #???# #?????????????? | | ??????????????????????## #???# #?????????????? | | ???????????????????????## ##???# #?????????????? | | ????????????????????????####????# #######???????? | | ????????????????????????????????# #???????? | | ????????????????????????????????# #???????? | | ????????????????????????????????####### #???????? | | ??????????????????????????????######### #???????? | | ?????????????????????????????## " % #???????? | | ?????????????????????????????# #???????? | | ?????????????????????????????# ######???????? | | ?????????????????????????????## #????????????? | | ??????????????????????????????## #????????????? | | ???????????????????????????????## ##????????????? | | ????????????????????????????????## #?????????????? | | ?????????????????????????????????# #?????????????? | | ?????????????????????????????????# #?????????????? | | ?????????????????????????????????# #???#########?? | | ?????????????????????????????????# ##### #?? | | ?????????????????????????????????# """ #?? | | ?????????????????????????????????#######% """ #?? | +----------------------------------------------------+ Best States ------------- Heat Dissipation 35 Energy Generation 10 Energy Capacity 250 Matter Stores 300 Matter Capacity 300 Sight Range 16 Terrain Scan Density 10 Evasion (%) 50 Item Schematics ----------------- None Robot Schematics ------------------ None Fabricated ------------ Nothing Alien Tech Used ----------------- None Achievements -------------- None Challenges ------------ None Game ------ Seed CompositeGyrokineticPlating Manual? 0 Play Time 00:19:13 Cumulative 21.6 hours Start 2023.03.03 @ 19:29:40 End 2023.03.03 @ 19:57:35 Sessions 1 Manual Loads 0 Difficulty Rogue Special Mode None Game No. 21 Rogue 21 Adventurer 0 Explorer 0 Win Type - Total 0 Types 0/0/0/0/0/0/0/0/0 Lore% 17 Gallery% 21 Achievement% 21 Wizard Run 0 Options --------- ASCII 0 Keyboard 1 Movement Vi Keybinds 0 Fullscreen 1 Font 24/Smallcaps Map View 113x50 Tactical HUD 1 Map Filters NONE Filters NONE Steam 1 RUN: 8aef3422-502e-45fc-b518-dc3afa75820a